fUSD/lending_fUSD_20240514
["ID","MTS","AMOUNT","RATE_DAILY","PERIOD"]
[327003441,1715701851828,-500.0,0.00012979,2]
[327003442,1715701851838,-500.0,0.00012979,2]
[327003443,1715701851850,-500.0,0.00012979,2]
[327003444,1715701851860,-500.0,0.00012979,2]
[327003445,1715701851870,-500.0,0.00012979,2]
[327003446,1715701851882,-500.0,0.00012979,2]
[327003447,1715701851891,-500.0,0.00012979,2]
[327003448,1715701851901,-500.0,0.00012979,2]
[327003449,1715701851912,-500.0,0.00012979,2]
[327003450,1715701851922,-500.0,0.00012979,2]
[327003451,1715701851931,-500.0,0.00012979,2]
[327003452,1715701851941,-500.0,0.00012979,2]
[327003453,1715701851950,-500.0,0.00012979,2]
[327003454,1715701851960,-336.42,0.00012979,2]
[327003455,1715701851970,-644.06,0.00012979,2]
[327003456,1715701851980,-500.0,0.00012979,2]
[327003457,1715701851991,-500.0,0.00012979,2]
[327003458,1715701852002,-369.51287521,0.00012979,2]
[327003459,1715701852012,-500.0,0.00012979,2]
[327003460,1715701852022,-500.0,0.00012979,2]
[327003461,1715701852032,-1443.43,0.00012979,2]
[327003462,1715701852042,-500.0,0.00012979,2]
[327003463,1715701852052,-500.0,0.00012979,2]
[327003464,1715701852063,-500.0,0.00012979,2]
[327003465,1715701852073,-474.9,0.00012979,2]
[327003466,1715701852084,-500.0,0.00012979,2]
[327003467,1715701852094,-500.0,0.00012979,2]
[327003468,1715701852104,-500.0,0.00012979,2]
[327003469,1715701852114,-500.0,0.00012979,2]
[327003470,1715701852124,-500.0,0.00012979,2]
[327003471,1715701852134,-500.0,0.00012979,2]
[327003472,1715701852144,-500.0,0.00012979,2]
[327003473,1715701852154,-500.0,0.00012979,2]
[327003474,1715701852164,-500.0,0.00012979,2]
[327003475,1715701852174,-500.0,0.00012979,2]
[327003476,1715701852184,-854.97,0.00012979,2]
[327003477,1715701852194,-854.97,0.00012979,2]
[327003478,1715701852203,-500.0,0.00012979,2]
[327003479,1715701852213,-500.0,0.00012979,2]
[327003480,1715701852224,-500.0,0.00012979,2]
[327003481,1715701852236,-520.08601864,0.00012979,2]
[327003482,1715701852247,-500.0,0.00012979,2]
[327003483,1715701852256,-500.0,0.00012979,2]
[327003484,1715701852266,-500.0,0.00012979,2]
[327003485,1715701852276,-507.89024781,0.00012979,2]
[327003486,1715701852287,-944.69,0.00012979,2]
[327003487,1715701852298,-944.69,0.00012979,2]
[327003488,1715701852310,-500.0,0.00012979,2]
[327003489,1715701852321,-648.32573453,0.00012979,2]
[327003490,1715701852336,-82.57426547,0.00012979,2]
[327003491,1715701852347,-440.3642669,0.00012979,2]
[327003492,1715701852359,-290.5357331,0.00012979,2]
[327003493,1715701852370,-503.38772172,0.00012979,2]
[327003494,1715701852380,-394.42654518,0.00012979,2]
[327003497,1715702212339,317.01957423,0.0003,120]
[327003503,1715702353315,501.30313016,0.0003,120]
[327003518,1715702718584,5000.0,0.0002999,120]
[327003528,1715702917842,3425.09957357,0.0003,120]
[327003529,1715702973068,2600.83838776,0.00025,120]
[327003530,1715703007213,20000.0,0.00024,120]
[327003540,1715703032306,-260.45583852,0.00010309,2]
[327003541,1715703032317,-165.81372397,0.0001031,2]
[327003542,1715703032326,-698.32,0.00010411,2]
[327003543,1715703032337,-165.81372396,0.00011594,2]
[327003544,1715703032346,-483.9,0.00011848,2]
[327003545,1715703032355,-488.0,0.00011851,2]
[327003546,1715703032364,-181.93,0.00011874,2]
[327003547,1715703032374,-512.0,0.00011877,2]
[327003548,1715703032383,-250.0,0.00011877,2]
[327003549,1715703032395,-250.0,0.00011878,2]
[327003550,1715703032405,-250.0,0.00011878,2]
[327003551,1715703032414,-178.64,0.00011923,2]
[327003552,1715703032424,-540.58175103,0.00011997,2]
[327003553,1715703032433,-7776.58497141,0.00012,2]
[327003554,1715703032450,-1477.02489927,0.00012,2]
[327003555,1715703032459,-186.96,0.00012148,2]
[327003556,1715703032468,-269.03,0.00012148,2]
[327003557,1715703032478,-131.00250123,0.00012342,7]
[327003558,1715703032494,-900.37502554,0.00012342,7]
[327003559,1715703032505,-239.66077685,0.00012342,7]
[327003560,1715703032514,-1171.458189,0.0001285,2]
[327003561,1715703032525,-207.231351,0.0001285,2]
[327003562,1715703032534,-165.81372396,0.00012878,2]
[327003563,1715703032543,-367.53732611,0.0001288,2]
[327003564,1715703032554,-500.53973003,0.0001288,2]
[327003565,1715703032565,-1047.0,0.0001288,2]
[327003566,1715703032576,-4654.44,0.0001288,2]
[327003567,1715703032588,-566.55211337,0.0001288,2]
[327003568,1715703032599,-2933.91684557,0.0001288,2]
[327003569,1715703032610,-422.43220396,0.0001288,2]
[327003570,1715703032621,-12260.0125371,0.0001288,2]
[327003571,1715703032638,-995.87545876,0.0001288,2]
[327003595,1715703038344,-18171.30000001,0.0001288,2]
[327003596,1715703038405,-1513.38669304,0.0001288,2]
[327003597,1715703038416,-64028.25025998,0.0001288,2]
[327003598,1715703038474,-14212.61073207,0.0001288,2]
[327003599,1715703038484,-594.81755899,0.00012893,2]
[327003600,1715703038493,-594.81755895,0.00012894,2]
[327003601,1715703038502,-594.81755895,0.00012894,2]
[327003602,1715703038511,-594.81755895,0.00012895,2]
[327003603,1715703038520,-594.81755895,0.00012896,2]
[327003604,1715703038529,-594.81755895,0.00012896,2]
[327003605,1715703038538,-594.81755895,0.00012897,2]
[327003606,1715703038548,-594.81755895,0.00012897,2]
[327003607,1715703038557,-594.81755895,0.00012898,2]
[327003608,1715703038566,-594.81755895,0.00012899,2]
[327003609,1715703038575,-594.81755895,0.00012899,2]
[327003610,1715703038584,-1029.5433949,0.000129,2]
[327003611,1715703038593,-594.81755895,0.000129,2]
[327003612,1715703038602,-11620.2,0.0001296,2]
[327003613,1715703038611,-159.56,0.00012967,2]
[327003614,1715703038620,-500.0,0.00012975,2]
[327003615,1715703038629,-500.0,0.00012975,2]
[327003616,1715703038638,-500.0,0.00012975,2]
[327003617,1715703038651,-500.0,0.00012975,2]
[327003618,1715703038660,-500.0,0.00012975,2]
[327003619,1715703038668,-558.14,0.00012975,2]
[327003620,1715703038677,-500.0,0.00012975,2]
[327003621,1715703038686,-500.0,0.00012975,2]
[327003622,1715703038695,-1222.09,0.00012975,2]
[327003623,1715703038705,-500.0,0.00012975,2]
[327003624,1715703038714,-500.0,0.00012975,2]
[327003625,1715703038723,-336.12,0.00012975,2]
[327003626,1715703038732,-500.0,0.00012975,2]
[327003627,1715703038741,-500.0,0.00012975,2]
[327003628,1715703038750,-638.92,0.00012975,2]
[327003629,1715703038759,-500.0,0.00012975,2]
[327003630,1715703038768,-345.27,0.00012975,2]
[327003631,1715703038778,-500.0,0.00012975,2]
[327003632,1715703038786,-500.0,0.00012975,2]
[327003633,1715703038795,-500.0,0.00012975,2]
[327003634,1715703038804,-500.0,0.00012975,2]
[327003635,1715703038813,-826.6,0.00012975,2]
[327003636,1715703038822,-639.53,0.00012975,2]
[327003637,1715703038832,-562.42,0.00012975,2]
[327003638,1715703038841,-2715.59,0.00012975,2]
[327003639,1715703038850,-509.40323295,0.00012975,2]
[327003640,1715703038859,-842.56,0.00012975,2]
[327003641,1715703038868,-3001.84,0.00012975,2]
[327003642,1715703038878,-500.0,0.00012975,2]
[327003643,1715703038887,-500.0,0.00012975,2]
[327003644,1715703038898,-500.0,0.00012976,2]
[327003645,1715703038907,-500.0,0.00012976,2]
[327003646,1715703038917,-500.0,0.00012976,2]
[327003647,1715703038926,-506.85243965,0.00012976,2]
[327003648,1715703038935,-543.53,0.00012976,2]
[327003649,1715703038944,-500.0,0.00012976,2]
[327003650,1715703038954,-500.0,0.00012976,2]
[327003651,1715703038963,-500.0,0.00012976,2]
[327003652,1715703038978,-500.0,0.00012976,2]
[327003653,1715703038988,-500.0,0.00012976,2]
[327003654,1715703038997,-500.0,0.00012976,2]
[327003655,1715703039007,-500.0,0.00012976,2]
[327003656,1715703039018,-507.10079659,0.00012976,2]
[327003657,1715703039028,-500.0,0.00012976,2]
[327003658,1715703039037,-500.0,0.00012976,2]
[327003659,1715703039046,-528.50829502,0.00012976,2]
[327003660,1715703039057,-500.0,0.00012976,2]
[327003661,1715703039067,-500.0,0.00012976,2]
[327003662,1715703039076,-507.8750402,0.00012976,2]
[327003663,1715703039086,-500.0,0.00012976,2]
[327003664,1715703039095,-500.0,0.00012976,2]
[327003665,1715703039104,-500.0,0.00012976,2]
[327003666,1715703039113,-500.0,0.00012976,2]
[327003667,1715703039123,-540.73520173,0.00012976,2]
[327003668,1715703039132,-500.0,0.00012976,2]
[327003669,1715703039141,-507.70686304,0.00012976,2]
[327003670,1715703039154,-500.0,0.00012976,2]
[327003671,1715703039164,-500.0,0.00012976,2]
[327003672,1715703039173,-500.0,0.00012976,2]
[327003673,1715703039183,-610.19,0.00012976,2]
[327003674,1715703039193,-500.0,0.00012976,2]
[327003675,1715703039203,-500.0,0.00012976,2]
[327003676,1715703039213,-500.0,0.00012976,2]
[327003677,1715703039223,-500.0,0.00012976,2]
[327003678,1715703039233,-500.0,0.00012976,2]
[327003679,1715703039242,-500.0,0.00012976,2]
[327003680,1715703039253,-500.0,0.00012976,2]
[327003681,1715703039263,-500.0,0.00012976,2]
[327003682,1715703039273,-500.0,0.00012976,2]
[327003683,1715703039283,-500.0,0.00012976,2]
[327003684,1715703039293,-500.0,0.00012976,2]
[327003685,1715703039303,-503.83358091,0.00012976,2]
[327003686,1715703039312,-503.34032376,0.00012976,2]
[327003687,1715703039321,-504.2931837,0.00012976,2]
[327003688,1715703039331,-598.61,0.00012976,2]
[327003689,1715703039341,-505.87519197,0.00012976,2]
[327003690,1715703039351,-500.0,0.00012976,2]
[327003691,1715703039361,-504.90403914,0.00012976,2]
[327003692,1715703039370,-500.0,0.00012976,2]
[327003693,1715703039379,-500.0,0.00012976,2]
[327003694,1715703039388,-500.0,0.00012976,2]
[327003695,1715703039400,-519.42159228,0.00012976,2]
[327003696,1715703039410,-500.0,0.00012976,2]
[327003697,1715703039419,-504.39797261,0.00012976,2]
[327003698,1715703039428,-504.58143066,0.00012976,2]
[327003699,1715703039438,-500.0,0.00012976,2]
[327003700,1715703039447,-500.0,0.00012976,2]
[327003701,1715703039456,-512.84648736,0.00012976,2]
[327003702,1715703039465,-495.08221405,0.00012976,2]
[327003703,1715703039475,-532.2940178,0.00012976,2]
[327003704,1715703039484,-505.11475507,0.00012976,2]
[327003705,1715703039493,-507.46311062,0.00012976,2]
[327003706,1715703039502,-515.04357164,0.00012976,2]
[327003707,1715703039511,-500.0,0.00012976,2]
[327003708,1715703039521,-500.0,0.00012976,2]
[327003709,1715703039531,-500.0,0.00012976,2]
[327003710,1715703039540,-500.0,0.00012976,2]
[327003711,1715703039549,-500.0,0.00012976,2]
[327003712,1715703039559,-500.0,0.00012976,2]
[327003713,1715703039568,-500.0,0.00012976,2]
[327003714,1715703039577,-500.0,0.00012976,2]
[327003715,1715703039586,-506.72702359,0.00012976,2]
[327003716,1715703039596,-506.49568875,0.00012976,2]
[327003717,1715703039607,-500.0,0.00012976,2]
[327003718,1715703039616,-513.04781205,0.00012976,2]
[327003719,1715703039625,-506.09125623,0.00012976,2]
[327003720,1715703039634,-500.0,0.00012976,2]
[327003721,1715703039644,-500.0,0.00012976,2]
[327003722,1715703039653,-500.0,0.00012976,2]
[327003723,1715703039662,-500.0,0.00012976,2]
[327003724,1715703039672,-525.13,0.00012976,2]
[327003725,1715703039681,-500.0,0.00012976,2]
[327003726,1715703039690,-500.0,0.00012976,2]
[327003727,1715703039699,-500.0,0.00012976,2]
[327003728,1715703039709,-500.0,0.00012976,2]
[327003729,1715703039718,-500.0,0.00012976,2]
[327003730,1715703039727,-500.0,0.00012976,2]
[327003731,1715703039736,-500.0,0.00012976,2]
[327003732,1715703039745,-500.0,0.00012976,2]
[327003733,1715703039755,-500.0,0.00012976,2]
[327003734,1715703039764,-500.0,0.00012976,2]
[327003735,1715703039773,-500.0,0.00012976,2]
[327003736,1715703039783,-500.0,0.00012976,2]
[327003737,1715703039792,-500.0,0.00012976,2]
[327003738,1715703039802,-500.0,0.00012976,2]
[327003739,1715703039811,-497.5,0.00012976,2]
[327003740,1715703039821,-2430.9,0.00012976,2]
[327003741,1715703039830,-500.0,0.00012976,2]
[327003742,1715703039840,-500.0,0.00012976,2]
[327003743,1715703039849,-520.92470248,0.00012976,2]
[327003744,1715703039857,-500.0,0.00012976,2]
[327003745,1715703039866,-500.0,0.00012976,2]
[327003746,1715703039875,-500.0,0.00012976,2]
[327003747,1715703039884,-500.0,0.00012976,2]
[327003748,1715703039893,-500.0,0.00012976,2]
[327003749,1715703039902,-500.0,0.00012976,2]
[327003750,1715703039911,-927.85,0.00012976,2]
[327003751,1715703039921,-500.0,0.00012976,2]
[327003752,1715703039931,-500.0,0.00012976,2]
[327003753,1715703039940,-500.0,0.00012976,2]
[327003754,1715703039949,-689.46,0.00012976,2]
[327003755,1715703039957,-500.0,0.00012976,2]
[327003756,1715703039965,-500.0,0.00012976,2]
[327003757,1715703039976,-500.0,0.00012976,2]
[327003758,1715703039985,-685.22,0.00012976,2]
[327003759,1715703039995,-500.0,0.00012976,2]
[327003760,1715703040004,-590.39,0.00012976,2]
[327003761,1715703040015,-500.0,0.00012976,2]
[327003762,1715703040025,-500.0,0.00012976,2]
[327003763,1715703040034,-500.0,0.00012976,2]
[327003764,1715703040044,-500.0,0.00012976,2]
[327003765,1715703040054,-944.27,0.00012976,2]
[327003766,1715703040065,-500.0,0.00012976,2]
[327003767,1715703040075,-500.0,0.00012976,2]
[327003768,1715703040085,-500.0,0.00012976,2]
[327003769,1715703040094,-500.0,0.00012976,2]
[327003770,1715703040103,-500.0,0.00012976,2]
[327003771,1715703040113,-500.0,0.00012976,2]
[327003772,1715703040122,-500.0,0.00012976,2]
[327003773,1715703040131,-500.0,0.00012976,2]
[327003774,1715703040140,-500.0,0.00012976,2]
[327003775,1715703040150,-7189.94,0.00012976,2]
[327003776,1715703040159,-500.0,0.00012976,2]
[327003777,1715703040169,-500.0,0.00012977,2]
[327003778,1715703040178,-500.0,0.00012977,2]
[327003779,1715703040188,-500.0,0.00012977,2]
[327003780,1715703040197,-500.0,0.00012977,2]
[327003781,1715703040207,-500.0,0.00012977,2]
[327003782,1715703040215,-500.0,0.00012977,2]
[327003783,1715703040224,-500.0,0.00012977,2]
[327003784,1715703040234,-500.0,0.00012977,2]
[327003785,1715703040243,-500.0,0.00012977,2]
[327003786,1715703040254,-500.0,0.00012977,2]
[327003787,1715703040265,-500.0,0.00012977,2]
[327003788,1715703040274,-500.0,0.00012977,2]
[327003789,1715703040285,-500.0,0.00012977,2]
[327003790,1715703040295,-500.0,0.00012977,2]
[327003791,1715703040304,-500.0,0.00012977,2]
[327003792,1715703040314,-500.0,0.00012977,2]
[327003793,1715703040514,-500.0,0.00012977,2]
[327003794,1715703040524,-500.0,0.00012977,2]
[327003795,1715703040533,-500.0,0.00012977,2]
[327003796,1715703040542,-500.0,0.00012977,2]
[327003797,1715703040552,-500.0,0.00012977,2]
[327003798,1715703040561,-996.95,0.00012977,2]
[327003799,1715703040571,-500.0,0.00012977,2]
[327003800,1715703040580,-500.0,0.00012977,2]
[327003801,1715703040590,-150.0,0.00012977,2]
[327003802,1715703040599,-500.0,0.00012977,2]
[327003803,1715703040608,-500.0,0.00012977,2]
[327003804,1715703040619,-500.0,0.00012977,2]
[327003805,1715703040628,-500.0,0.00012977,2]
[327003806,1715703040638,-500.0,0.00012977,2]
[327003807,1715703040649,-500.0,0.00012977,2]
[327003808,1715703040659,-554.35,0.00012977,2]
[327003809,1715703040669,-500.0,0.00012977,2]
[327003810,1715703040678,-585.83,0.00012977,2]
[327003811,1715703040688,-500.0,0.00012977,2]
[327003812,1715703040697,-500.0,0.00012977,2]
[327003813,1715703040706,-500.0,0.00012977,2]
[327003814,1715703040715,-500.0,0.00012977,2]
[327003815,1715703040725,-194.11623619,0.00012977,2]
[327003816,1715703040734,-500.0,0.00012977,2]
[327003817,1715703040744,-500.0,0.00012977,2]
[327003818,1715703040753,-500.0,0.00012977,2]
[327003819,1715703040763,-500.0,0.00012977,2]
[327003820,1715703040772,-500.0,0.00012977,2]
[327003821,1715703040781,-500.0,0.00012977,2]
[327003822,1715703040791,-500.0,0.00012977,2]
[327003823,1715703040800,-500.0,0.00012977,2]
[327003824,1715703040810,-500.0,0.00012977,2]
[327003825,1715703040819,-500.0,0.00012977,2]
[327003826,1715703040829,-500.0,0.00012977,2]
[327003827,1715703040839,-500.0,0.00012977,2]
[327003828,1715703040848,-500.0,0.00012977,2]
[327003829,1715703040857,-500.0,0.00012977,2]
[327003830,1715703040866,-500.0,0.00012977,2]
[327003831,1715703040876,-500.0,0.00012977,2]
[327003832,1715703040885,-500.0,0.00012977,2]
[327003833,1715703040897,-500.0,0.00012977,2]
[327003834,1715703040907,-500.0,0.00012977,2]
[327003835,1715703040916,-500.0,0.00012977,2]
[327003836,1715703040926,-500.0,0.00012977,2]
[327003837,1715703040936,-500.0,0.00012977,2]
[327003838,1715703040945,-500.0,0.00012977,2]
[327003839,1715703040955,-500.0,0.00012977,2]
[327003840,1715703040965,-500.0,0.00012977,2]
[327003841,1715703040978,-500.0,0.00012977,2]
[327003842,1715703040987,-500.0,0.00012977,2]
[327003843,1715703040997,-500.0,0.00012977,2]
[327003844,1715703041006,-500.0,0.00012977,2]
[327003845,1715703041017,-500.0,0.00012977,2]
[327003846,1715703041026,-500.0,0.00012977,2]
[327003847,1715703041036,-500.0,0.00012977,2]
[327003848,1715703041045,-500.0,0.00012977,2]
[327003849,1715703041056,-500.0,0.00012977,2]
[327003850,1715703041065,-500.0,0.00012977,2]
[327003851,1715703041074,-500.0,0.00012977,2]
[327003852,1715703041084,-1250.64,0.00012977,2]
[327003853,1715703041093,-500.0,0.00012977,2]
[327003854,1715703041102,-500.0,0.00012977,2]
[327003855,1715703041112,-500.0,0.00012977,2]
[327003856,1715703041121,-509.05241031,0.00012977,2]
[327003857,1715703041131,-528.16,0.00012977,2]
[327003858,1715703041140,-500.0,0.00012977,2]
[327003859,1715703041152,-500.0,0.00012977,2]
[327003860,1715703041161,-500.0,0.00012977,2]
[327003861,1715703041171,-500.0,0.00012977,2]
[327003862,1715703041180,-500.0,0.00012977,2]
[327003863,1715703041190,-500.0,0.00012977,2]
[327003864,1715703041200,-500.0,0.00012977,2]
[327003865,1715703041209,-500.0,0.00012977,2]
[327003866,1715703041219,-500.0,0.00012977,2]
[327003867,1715703041228,-1335.83,0.00012977,2]
[327003868,1715703041238,-500.0,0.00012977,2]
[327003869,1715703041247,-209.33320809,0.00012977,2]
[327003870,1715703041257,-500.0,0.00012977,2]
[327003871,1715703041266,-500.0,0.00012977,2]
[327003872,1715703041276,-500.0,0.00012977,2]
[327003873,1715703041286,-500.0,0.00012977,2]
[327003874,1715703041295,-500.0,0.00012977,2]
[327003875,1715703041305,-1118.01,0.00012977,2]
[327003876,1715703041314,-500.0,0.00012977,2]
[327003877,1715703041324,-626.23,0.00012977,2]
[327003878,1715703041333,-526.21061371,0.00012977,2]
[327003879,1715703041343,-500.0,0.00012977,2]
[327003880,1715703041353,-500.0,0.00012977,2]
[327003881,1715703041362,-512.86,0.00012977,2]
[327003882,1715703041371,-500.0,0.00012977,2]
[327003883,1715703041381,-500.0,0.00012977,2]
[327003884,1715703041390,-1039.39,0.00012977,2]
[327003885,1715703041402,-500.0,0.00012977,2]
[327003886,1715703041412,-517.57,0.00012977,2]
[327003887,1715703041422,-554.92,0.00012977,2]
[327003888,1715703041431,-516.95302446,0.00012977,2]
[327003889,1715703041441,-500.0,0.00012977,2]
[327003890,1715703041450,-517.17445328,0.00012978,2]
[327003891,1715703041459,-500.0,0.00012978,2]
[327003892,1715703041469,-500.0,0.00012978,2]
[327003893,1715703041478,-506.74479064,0.00012978,2]
[327003894,1715703041487,-636.23052873,0.00012978,2]
[327003895,1715703041497,-518.1882438,0.00012978,2]
[327003896,1715703041506,-521.8496568,0.00012978,2]
[327003897,1715703041515,-514.48276063,0.00012978,2]
[327003898,1715703041524,-525.60805119,0.00012978,2]
[327003899,1715703041534,-200.76148457,0.00012978,2]
[327003900,1715703041543,-500.0,0.00012978,2]
[327003901,1715703041553,-511.09821474,0.00012978,2]
[327003902,1715703041563,-347.07261851,0.00012978,2]
[327003903,1715703041572,-500.0,0.00012978,2]
[327003904,1715703041581,-500.0,0.00012978,2]
[327003905,1715703041591,-500.0,0.00012978,2]
[327003906,1715703041600,-500.0,0.00012978,2]
[327003907,1715703041610,-500.0,0.00012978,2]
[327003908,1715703041618,-519.88311065,0.00012978,2]
[327003909,1715703041628,-500.0,0.00012978,2]
[327003910,1715703041637,-500.0,0.00012978,2]
[327003911,1715703041649,-506.49689696,0.00012978,2]
[327003912,1715703041658,-500.0,0.00012978,2]
[327003913,1715703041667,-500.0,0.00012978,2]
[327003914,1715703041677,-500.0,0.00012978,2]
[327003915,1715703041686,-1459.51,0.00012978,2]
[327003916,1715703041696,-1122.52,0.00012978,2]
[327003917,1715703041705,-500.2428486,0.00012978,2]
[327003918,1715703041715,-500.0,0.00012978,2]
[327003919,1715703041724,-500.0,0.00012978,2]
[327003920,1715703041734,-610.0,0.00012978,2]
[327003921,1715703041743,-546.88,0.00012978,2]
[327003922,1715703041752,-500.0,0.00012978,2]
[327003923,1715703041762,-500.0,0.00012978,2]
[327003924,1715703041771,-500.0,0.00012978,2]
[327003925,1715703041780,-690.24,0.00012978,2]
[327003926,1715703041790,-500.0,0.00012978,2]
[327003927,1715703041799,-500.0,0.00012978,2]
[327003928,1715703041807,-500.0,0.00012978,2]
[327003929,1715703041817,-500.0,0.00012978,2]
[327003930,1715703041826,-500.0,0.00012978,2]
[327003931,1715703041835,-500.0,0.00012978,2]
[327003932,1715703041844,-500.0,0.00012978,2]
[327003933,1715703041854,-500.0,0.00012978,2]
[327003934,1715703041863,-500.0,0.00012978,2]
[327003935,1715703041872,-500.0,0.00012978,2]
[327003936,1715703041881,-600.95447767,0.00012978,2]
[327003937,1715703041890,-500.0,0.00012978,2]
[327003938,1715703041901,-500.0,0.00012978,2]
[327003939,1715703041909,-500.0,0.00012978,2]
[327003940,1715703041918,-500.0,0.00012978,2]
[327003941,1715703041927,-515.01396374,0.00012978,2]
[327003942,1715703041936,-333.16984267,0.00012978,2]
[327003943,1715703041945,-500.0,0.00012978,2]
[327003944,1715703041955,-500.0,0.00012978,2]
[327003945,1715703041964,-500.58859624,0.00012978,2]
[327003946,1715703041975,-527.71570061,0.00012978,2]
[327003947,1715703041986,-697.12,0.00012978,2]
[327003948,1715703041995,-1222.09,0.00012978,2]
[327003949,1715703042004,-1109.46,0.00012978,2]
[327003950,1715703042015,-500.0,0.00012978,2]
[327003951,1715703042024,-500.0,0.00012978,2]
[327003952,1715703042034,-500.0,0.00012978,2]
[327003953,1715703042043,-938.9,0.00012978,2]
[327003954,1715703042053,-620.11,0.00012978,2]
[327003955,1715703042063,-500.0,0.00012978,2]
[327003956,1715703042072,-500.0,0.00012978,2]
[327003957,1715703042082,-500.0,0.00012978,2]
[327003958,1715703042091,-1600.45,0.00012978,2]
[327003959,1715703042101,-1472.15,0.00012978,2]
[327003960,1715703042110,-500.0,0.00012978,2]
[327003961,1715703042119,-948.85708476,0.00012978,2]
[327003962,1715703042129,-1232.12,0.00012978,2]
[327003963,1715703042138,-500.0,0.00012978,2]
[327003964,1715703042149,-575.75,0.00012978,2]
[327003965,1715703042158,-1323.14,0.00012978,2]
[327003966,1715703042167,-638.92,0.00012978,2]
[327003967,1715703042176,-500.0,0.00012978,2]
[327003968,1715703042185,-500.0,0.00012978,2]
[327003969,1715703042195,-517.31743426,0.00012978,2]
[327003970,1715703042204,-873.45,0.00012978,2]
[327003971,1715703042212,-500.0,0.00012978,2]
[327003972,1715703042222,-500.0,0.00012978,2]
[327003973,1715703042231,-500.0,0.00012978,2]
[327003974,1715703042240,-500.0,0.00012978,2]
[327003975,1715703042249,-500.0,0.00012978,2]
[327003976,1715703042260,-500.0,0.00012978,2]
[327003977,1715703042270,-826.6,0.00012978,2]
[327003978,1715703042279,-639.53,0.00012978,2]
[327003979,1715703042289,-500.0,0.00012978,2]
[327003980,1715703042298,-562.42,0.00012978,2]
[327003981,1715703042308,-2715.59,0.00012978,2]
[327003982,1715703042317,-842.56,0.00012978,2]
[327003983,1715703042327,-3001.84,0.00012978,2]
[327003984,1715703042337,-500.0,0.00012978,2]
[327003985,1715703042347,-500.0,0.00012978,2]
[327003986,1715703042356,-500.0,0.00012978,2]
[327003987,1715703042366,-260.25,0.00012978,2]
[327003988,1715703042376,-496.994,0.00012979,2]
[327003989,1715703042385,-2000.0,0.00012979,2]
[327003990,1715703042398,-200.0,0.00012979,2]
[327003991,1715703042408,-500.0,0.00012979,2]
[327003992,1715703042417,-500.0,0.00012979,2]
[327003993,1715703042431,-500.0,0.00012979,2]
[327003994,1715703042442,-500.0,0.00012979,2]
[327003995,1715703042451,-500.0,0.00012979,2]
[327003996,1715703042461,-500.0,0.00012979,2]
[327003997,1715703042471,-500.0,0.00012979,2]
[327003998,1715703042481,-500.0,0.00012979,2]
[327003999,1715703042491,-506.14376141,0.00012979,2]
[327004000,1715703042501,-500.0,0.00012979,2]
[327004001,1715703042511,-603.33,0.00012979,2]
[327004002,1715703042521,-589.71,0.00012979,2]